bitfinex-derivatives/quotes_ETHF0:USTF0_20260113
["timestamp","ask_amount","ask_price","bid_price","bid_amount"]
[1768318959573,1.641,3160.9,3159.4,0.15838]
[1768318960462,0.13590676,3160.8,3159.4,0.15838]
[1768318960666,1.77690676,3160.8,3159.4,0.15838]
[1768318961464,1.003824,3161.0,3159.2,0.13799919]
[1768318961665,1.003824,3161.0,3159.6,0.15837]
[1768318961861,1.003824,3161.0,3159.7,0.15836]
[1768318962368,1.003824,3161.0,3159.3,0.13799919]
[1768318962666,0.13581205,3161.0,3159.4,1.76603165]
[1768318962858,2.05e-06,3161.0,3160.4,0.15833]
[1768318963266,2.05e-06,3161.0,3159.3,1.259]
[1768318963566,0.13590676,3161.8,3160.4,0.15833]
[1768318963966,0.13590676,3161.8,3160.5,0.15832]
[1768318964163,0.13590676,3161.8,3160.7,0.15831]
[1768318964366,0.00312655,3161.8,3161.0,0.1583]
[1768318964561,0.00312655,3161.8,3161.0,0.16098813]
[1768318964766,0.00312655,3161.8,3161.2,0.15829]
[1768318964966,0.13590676,3162.5,3161.2,0.15829]
[1768318965857,0.13888743,3162.5,3161.2,0.15829]
[1768318966867,0.00298067,3162.5,3161.3,0.15828]
[1768318967269,0.13888743,3162.5,3161.3,0.15828]
[1768318968070,1.56306069,3161.7,3161.0,0.00268813]
[1768318968268,0.13590676,3161.9,3161.0,0.00268813]
[1768318968568,0.13590676,3162.4,3161.0,0.00268813]
[1768318969163,0.13590676,3162.4,3161.1,0.15829]
[1768318969372,0.13590676,3162.4,3161.2,0.15829]
[1768318970368,0.13590676,3162.4,3161.3,0.15828]
[1768318970971,0.00298067,3162.5,3161.0,0.00268813]
[1768318971267,0.00298067,3162.5,3161.0,6.00268813]
[1768318971472,0.00298067,3162.5,3161.5,0.15827]
[1768318972073,0.13888743,3162.5,3161.5,0.15827]
[1768318980578,0.13888743,3162.5,3161.6,0.15827]
[1768318981180,0.13590676,3163.0,3161.4,1.56306069]
[1768318981483,0.13590676,3163.0,3162.1,0.15824]
[1768318982387,0.13935463,3163.0,3162.1,0.15824]
[1768318986384,0.00344787,3163.0,3162.1,0.15824]
[1768318986576,0.00344787,3163.0,3162.2,0.15824]
[1768318986773,0.00344787,3163.0,3161.6,1.56306069]
[1768318986983,0.00344787,3163.0,3162.4,0.15823]
[1768318987287,0.13429237,3163.5,3162.0,1.56306069]
[1768318987678,0.13429237,3164.3,3162.9,0.1582]
[1768318987881,0.13429237,3164.3,3163.0,0.1582]
[1768318988182,0.1371968,3164.3,3163.0,0.1582]
[1768318992290,0.1371968,3164.3,3162.2,1.56306069]
[1768318992587,0.1371968,3164.3,3163.0,0.1582]
[1768318993291,0.1371968,3164.3,3163.1,0.15819]
[1768318993883,0.1371968,3164.3,3162.6,1.56306069]
[1768318994198,0.1371968,3164.3,3163.4,0.15818]
[1768318994383,0.1371968,3164.3,3163.4,0.16115433]
[1768318998087,0.00290443,3164.3,3163.5,0.15817]
[1768318998282,0.14330555,3164.3,3163.5,0.15817]
[1768318998696,0.14330555,3164.3,3163.4,0.00297433]
[1768319003601,0.14330555,3164.3,3163.5,0.15817]
[1768319005198,0.14330555,3164.3,3163.6,0.15817]
[1768319005392,0.14330555,3164.3,3163.7,0.15816]
[1768319007796,0.14040112,3164.0,3162.5,0.15822]
[1768319008003,0.14040112,3163.4,3162.5,0.15822]
[1768319008296,0.14040112,3163.4,3161.4,5.46537972]
[1768319008501,0.14040112,3163.4,3161.9,0.15825]
[1768319008904,0.14040112,3163.4,3161.9,0.16110612]
[1768319014001,0.14040112,3163.2,3161.9,0.16110612]
[1768319014600,0.14040112,3162.8,3161.2,0.15829]
[1768319014814,0.14040112,3162.4,3161.2,0.15829]
[1768319015003,0.14040112,3162.4,3160.5,0.15832]
[1768319015203,0.14040112,3162.4,3160.6,0.00296605]
[1768319015403,1.56306069,3161.7,3160.5,0.15832]
[1768319015606,0.13903661,3161.6,3160.5,0.15832]
[1768319015805,0.14266618,3161.6,3160.7,0.00296605]
[1768319018402,0.14266618,3161.6,3159.9,0.15835]
[1768319018601,0.14266618,3161.6,3159.4,3.164]
[1768319018901,0.14266618,3161.6,3160.0,0.15835]
[1768319019603,0.14266618,3161.6,3160.0,0.16183808]
[1768319019604,0.13903661,3161.3,3160.0,0.16183808]
[1768319026610,0.00362957,3161.6,3160.0,0.00348808]
[1768319026807,0.00362957,3161.6,3160.5,0.15832]
[1768319027004,0.14266618,3161.6,3160.5,0.15832]
[1768319027709,0.14266618,3161.6,3160.0,0.00348808]
[1768319028108,0.14266618,3161.6,3160.0,0.16183808]
[1768319029614,0.14266618,3161.6,3160.0,0.00348808]
[1768319029815,0.14266618,3161.6,3160.2,0.15834]
[1768319030020,0.14266618,3161.6,3160.3,0.15833]
[1768319031818,0.14266618,3161.6,3160.0,0.00348808]
[1768319033218,0.14266618,3161.6,3160.2,0.15834]
[1768319033422,0.14266618,3161.6,3160.0,0.00348808]
[1768319033423,0.14266618,3161.6,3160.5,0.15832]
[1768319033925,0.14266618,3161.6,3160.7,0.15831]
[1768319034121,0.00362957,3161.6,3160.7,0.15831]
[1768319034322,0.00362957,3161.6,3160.8,0.15831]
[1768319035710,0.13903661,3162.1,3160.8,0.15831]
[1768319035916,0.13903661,3162.1,3161.1,0.15829]
[1768319036817,0.14160119,3162.1,3161.1,0.15829]
[1768319037120,0.14160119,3162.1,3161.2,0.15829]
[1768319037328,0.00256458,3162.1,3160.6,6.0]
[1768319038719,0.00256458,3162.1,3161.3,0.15828]
[1768319038915,0.13903661,3162.6,3160.6,6.0]
[1768319039110,0.13903661,3162.6,3161.5,0.15827]
[1768319039920,0.14289133,3162.6,3161.5,0.15827]
[1768319041812,0.14289133,3162.6,3161.6,0.15827]
[1768319042126,0.14289133,3162.6,3161.8,0.15826]
[1768319042725,0.14289133,3162.6,3161.9,0.15825]
[1768319043222,0.14289133,3162.6,3160.6,3.90231903]
[1768319043425,0.14289133,3162.6,3161.3,0.15828]
[1768319044116,0.14289133,3162.6,3160.8,0.15831]
[1768319044429,0.14289133,3162.6,3160.2,3.165]
[1768319044630,0.14289133,3162.6,3160.9,0.1583]
[1768319047622,0.14289133,3162.6,3161.0,0.1583]
[1768319048025,0.14289133,3162.6,3161.2,0.15829]
[1768319049529,0.13772031,3162.5,3160.1,3.165]
[1768319050128,0.13772031,3162.5,3160.0,0.00348808]
[1768319050320,0.13772031,3162.5,3160.7,0.15831]
[1768319050522,0.13772031,3162.5,3160.0,0.00348808]
[1768319050824,0.13772031,3162.5,3160.7,0.15831]
[1768319051317,0.13772031,3162.5,3160.8,0.15831]
[1768319054624,0.13772031,3162.0,3160.4,0.15833]
[1768319055425,0.13772031,3161.9,3160.4,0.15833]
[1768319060023,0.13772031,3161.9,3160.5,0.15832]
[1768319060216,0.13772031,3161.9,3160.0,0.00348808]
[1768319060419,0.13772031,3161.9,3160.0,0.01317319]
[1768319060723,0.13772031,3161.9,3160.6,0.15832]
[1768319061732,0.13772031,3161.9,3160.0,0.00348808]
[1768319062232,0.13772031,3161.9,3160.6,0.15832]
[1768319062836,0.13772031,3161.9,3160.7,0.15831]
[1768319063527,0.13772031,3161.9,3160.8,0.15831]
[1768319063930,0.13772031,3161.9,3160.9,0.1583]
[1768319064130,0.13772031,3161.9,3161.0,0.1583]
[1768319064926,0.13772031,3161.9,3160.0,0.00348808]
[1768319065126,0.13357963,3161.7,3160.0,0.00348808]
[1768319065520,0.13357963,3161.5,3160.0,0.00348808]
[1768319066322,4.96027,3161.6,3160.0,0.00348808]
[1768319066323,0.13357963,3161.3,3160.0,0.00348808]
[1768319068224,0.13357963,3161.3,3160.0,0.16183808]
[1768319068630,0.13357963,3161.3,3160.1,0.15834]
[1768319068835,0.13357963,3161.3,3160.2,0.15834]
[1768319070938,0.13357963,3161.3,3160.3,0.15833]
[1768319074038,0.13357963,3161.8,3160.0,0.00348808]
[1768319074240,0.13357963,3161.8,3160.7,0.15831]
[1768319074435,0.13357963,3161.8,3160.8,0.15831]
[1768319074740,0.13357963,3161.8,3160.9,0.1583]
[1768319075044,0.13357963,3161.8,3160.0,3.90580711]
[1768319075045,0.13361612,3162.5,3161.1,0.15829]
[1768319075233,0.13361612,3162.5,3160.2,3.90231903]
[1768319075437,0.13361612,3162.5,3161.6,0.15827]
[1768319075639,0.00385472,3162.6,3161.7,0.15826]
[1768319076136,0.13361612,3163.0,3161.1,3.90231903]
[1768319076331,0.13361612,3163.0,3161.7,0.15826]
[1768319076936,0.23856384,3161.6,3161.0,8.32631903]
[1768319077131,0.13646972,3163.0,3161.6,0.15827]
[1768319078531,0.13646972,3163.0,3161.7,0.15826]
[1768319080544,0.13646972,3163.0,3161.8,0.15826]
[1768319086945,0.0028536,3163.0,3162.4,0.15823]
[1768319087140,0.0028536,3163.0,3162.5,0.15822]
[1768319087846,0.0028536,3163.0,3162.6,0.15822]
[1768319088046,0.0028536,3163.0,3162.7,0.15821]
[1768319088743,0.13361612,3164.0,3162.9,0.1582]
[1768319088951,0.13361612,3164.0,3163.2,0.15819]
[1768319089637,0.137188,3164.0,3163.2,0.15819]
[1768319090645,0.00357188,3164.0,3163.2,0.15819]
[1768319091649,0.137188,3164.0,3163.2,0.15819]
[1768319091858,0.137188,3164.0,3162.4,0.2907137]
[1768319092238,0.137188,3164.0,3162.4,0.00353546]
[1768319092453,0.13361612,3163.7,3162.8,0.15821]
[1768319093555,0.13361612,3163.7,3162.4,0.00353546]
[1768319094054,0.13361612,3163.7,3162.4,0.16176546]
[1768319094249,0.13361612,3163.7,3162.5,0.15822]
[1768319096152,0.13361612,3163.7,3162.6,0.15822]
[1768319098854,0.13361612,3163.7,3162.7,0.15821]
[1768319100550,0.13361612,3163.1,3162.4,0.00353546]
[1768319100751,0.13361612,3163.1,3162.1,0.15824]
[1768319100944,0.13361612,3163.1,3161.3,0.29115923]
[1768319101147,0.13361612,3163.9,3162.6,0.15821]
[1768319101744,0.13361612,3163.9,3162.6,0.16148209]
[1768319101950,0.13361612,3163.5,3162.6,0.00327209]
[1768319102148,0.13361612,3163.5,3162.7,0.15821]
[1768319102752,0.13361612,3163.5,3162.2,0.15824]
[1768319103550,0.13361612,3163.5,3162.3,0.15823]
[1768319103752,0.13361612,3163.5,3162.4,0.15823]
[1768319104453,0.13361612,3163.5,3162.6,0.15822]
[1768319105049,0.13361612,3163.5,3162.7,0.15821]
[1768319106964,0.13361612,3163.5,3162.8,0.15821]
[1768319107150,0.13361612,3163.5,3162.2,0.00239389]
[1768319107151,0.13361612,3163.5,3162.9,0.1582]
[1768319107643,0.00357188,3164.0,3162.2,0.00239389]
[1768319107644,0.14605489,3164.0,3163.0,0.1582]
[1768319108653,0.14605489,3164.0,3163.2,0.15819]
[1768319109950,0.14605489,3164.0,3162.2,0.00239389]
[1768319110360,0.14605489,3164.0,3163.2,0.15819]
[1768319112450,0.14605489,3164.0,3163.3,0.15818]
[1768319114765,0.14605489,3164.0,3162.2,3.90471292]
[1768319115156,0.14605489,3164.0,3163.1,0.15819]
[1768319115361,0.14605489,3164.0,3163.2,0.15819]
[1768319115562,0.14605489,3164.0,3163.3,0.15818]
[1768319116873,0.14605489,3164.0,3162.7,0.15821]
[1768319117162,0.13505214,3163.8,3162.2,0.00239389]
[1768319117463,0.13862402,3164.0,3162.2,0.00239389]
[1768319117659,0.13862402,3164.0,3163.2,0.15819]
[1768319119567,0.13862402,3164.0,3162.4,1.56195346]
[1768319119759,0.13505214,3164.5,3163.8,0.15816]
[1768319119962,0.13505214,3164.5,3163.9,0.15815]
[1768319120875,0.13867848,3164.5,3163.9,0.15815]
[1768319121374,0.13867848,3164.5,3162.8,1.56195346]
[1768319121566,0.13867848,3164.5,3163.3,0.15818]
[1768319123458,0.13867848,3164.5,3162.7,0.15821]
[1768319123664,0.13505214,3164.1,3162.8,0.15821]
[1768319124073,0.13505214,3164.1,3162.3,1.56195346]
[1768319124373,0.13505214,3164.1,3163.3,0.15818]
[1768319124761,0.13505214,3164.1,3163.4,0.15818]
[1768319125163,0.13505214,3164.1,3163.5,0.15817]
[1768319125372,0.00362634,3164.5,3163.5,0.15817]
[1768319125675,0.13867848,3164.5,3163.6,0.15817]
[1768319127076,0.13867848,3164.5,3163.7,0.15816]
[1768319127277,0.13867848,3164.5,3162.9,1.56195346]
[1768319127477,0.00362634,3164.5,3163.9,0.15815]
[1768319127978,6.34e-06,3164.6,3164.1,0.15814]
[1768319128374,6.34e-06,3164.6,3164.2,0.15814]
[1768319128577,0.13505848,3164.6,3164.2,0.15814]
[1768319128882,0.13505848,3164.6,3163.6,0.15817]
[1768319129077,0.13848753,3164.6,3163.6,0.15817]
[1768319129281,0.13848753,3164.6,3163.7,0.15816]
[1768319132483,0.13848753,3164.6,3163.8,0.15816]
[1768319135099,5.39e-06,3164.6,3164.1,0.15814]
[1768319138186,5.39e-06,3164.6,3164.2,0.15814]
[1768319139388,5.39e-06,3164.6,3164.3,0.15813]
[1768319141884,0.13768155,3164.6,3163.8,0.15816]
[1768319143181,5.39e-06,3164.6,3163.8,0.15816]
[1768319143385,5.39e-06,3164.6,3163.1,3.90231903]
[1768319143386,0.13767616,3165.3,3164.0,1.56195346]
[1768319143691,0.13767616,3165.3,3163.6,1.256]
[1768319143692,0.13767616,3165.3,3163.7,3.90231903]
[1768319144082,0.13767616,3165.3,3163.6,5.15831903]
[1768319144684,0.13767616,3165.3,3164.4,0.15813]
[1768319145691,0.14100536,3165.3,3164.4,0.15813]
[1768319146289,0.0033292,3165.3,3164.6,0.15812]
[1768319146490,0.0033292,3165.3,3164.6,0.16138467]
[1768319147690,0.0033292,3165.3,3164.7,0.15811]
[1768319148680,0.13767616,3166.2,3164.6,1.06907901]
[1768319148881,0.13767616,3166.2,3164.9,1.06581434]
[1768319149082,0.13767616,3166.2,3164.6,0.00326467]
[1768319149292,0.13767616,3166.0,3164.8,1.06581434]
[1768319149491,0.13767616,3166.0,3165.0,0.1581]
[1768319149696,0.14142289,3166.0,3165.0,0.1581]
[1768319150493,0.13767616,3165.6,3164.6,0.00326467]
[1768319151591,0.00374673,3166.0,3164.7,0.15811]
[1768319151797,0.14142289,3166.0,3164.8,0.15811]
[1768319152792,0.14142289,3166.0,3165.0,0.1581]
[1768319153297,0.14142289,3166.0,3165.1,0.15809]
[1768319154803,0.14142289,3166.0,3164.6,0.00326467]
[1768319155303,6.14142289,3166.0,3164.6,0.00326467]
[1768319155503,0.13767616,3165.9,3164.6,0.00326467]
[1768319157287,0.13767616,3165.8,3164.6,0.00326467]
[1768319158092,0.13767616,3165.8,3163.8,0.15816]
[1768319158290,0.13767616,3165.8,3163.3,5.15831903]
[1768319158291,0.13767616,3165.8,3165.0,0.1581]
[1768319158594,0.00374673,3166.0,3165.1,0.15809]
[1768319158799,0.00374673,3166.0,3165.2,0.15809]
[1768319158997,0.00374673,3166.0,3165.3,0.15808]
[1768319159198,0.00374673,3166.0,3165.3,0.16060863]
[1768319160798,0.00374673,3166.0,3165.3,0.00252863]
[1768319161003,6.73e-06,3166.0,3165.3,0.00252863]
[1768319161204,0.13767616,3166.8,3165.6,0.15807]
[1768319162090,0.14065702,3166.8,3165.6,0.15807]
[1768319162504,0.14065702,3166.8,3165.3,0.00252863]
[1768319162707,1.90722064,3166.8,3165.3,0.00252863]
[1768319163003,0.13767616,3166.7,3165.3,0.00252863]
[1768319163206,0.13767616,3166.7,3165.3,0.16060863]
[1768319163408,0.13767616,3166.7,3165.4,0.15808]
[1768319163699,0.13767616,3166.7,3165.3,0.00252863]
[1768319163905,0.13767616,3166.7,3165.6,0.15807]
[1768319165406,0.13767616,3166.7,3165.3,0.00252863]
[1768319166699,1.90423978,3166.7,3165.3,0.00252863]
[1768319167011,0.14309777,3166.6,3165.3,0.00252863]
[1768319168210,0.14309777,3166.5,3164.4,0.15813]
[1768319168404,0.14309777,3166.1,3164.4,0.15813]
[1768319169202,0.14309777,3166.1,3164.4,0.1607397]
[1768319171704,0.14309777,3166.1,3164.4,0.0026097]
[1768319172306,0.14309777,3166.1,3164.9,0.1581]
[1768319172894,0.14309777,3166.1,3164.4,0.0026097]
[1768319174694,0.14309777,3166.0,3164.4,0.0026097]
[1768319174901,0.14309777,3165.5,3163.7,4.06047903]
[1768319175101,0.14309777,3165.5,3163.7,0.15816]
[1768319175606,0.14309777,3165.5,3163.8,0.15816]
[1768319176001,0.14309777,3165.5,3163.8,0.16129818]
[1768319177299,0.14309777,3165.5,3164.0,0.15814]
[1768319177508,0.14309777,3165.5,3164.4,0.15813]
[1768319179001,0.14309777,3165.5,3163.8,0.00313818]
[1768319179202,0.14574782,3165.4,3163.8,0.16129818]
[1768319179619,0.14574782,3165.4,3163.8,0.00313818]
[1768319181608,0.30382782,3165.4,3163.8,0.00313818]
[1768319182006,0.14574782,3165.3,3163.8,0.00313818]
[1768319182505,0.14574782,3164.8,3162.5,3.90231903]
[1768319182705,0.14574782,3164.4,3162.2,3.90231903]
[1768319183113,0.14574782,3164.4,3162.9,0.1582]
[1768319183614,0.14840594,3164.4,3162.9,0.16150725]
[1768319184311,0.14840594,3164.4,3162.9,0.00330725]
[1768319185607,0.14840594,3164.4,3163.1,0.15819]
[1768319191618,0.14840594,3164.4,3162.9,0.00330725]
[1768319194212,0.14840594,3164.4,3163.1,0.15819]
[1768319194522,0.14840594,3164.4,3162.9,0.00330725]
[1768319195319,0.14486254,3164.2,3162.9,0.00330725]
[1768319196523,0.14486254,3164.2,3162.9,0.16150725]
[1768319196724,0.14486254,3164.2,3163.1,0.15819]
[1768319197123,0.14486254,3164.2,3163.2,0.15819]
[1768319197526,0.14486254,3164.2,3163.3,0.15818]
[1768319199721,0.14486254,3164.2,3162.9,0.16150725]
[1768319200724,0.14486254,3164.2,3162.4,0.15823]
[1768319201326,0.14486254,3164.1,3162.4,0.15823]
[1768319201624,0.14486254,3164.0,3161.5,3.163]
[1768319201826,0.14486254,3164.0,3161.5,3.165924]
[1768319202032,0.14486254,3164.0,3162.0,0.15825]
[1768319202227,0.14486254,3164.0,3161.5,9.165924]
[1768319202531,0.14486254,3164.0,3161.5,13.06824303]
[1768319203318,0.14486254,3164.0,3161.7,3.90231903]
[1768319203525,0.14486254,3164.0,3162.9,0.1582]
[1768319203923,0.14486254,3164.0,3163.0,0.1582]
[1768319204123,0.13269855,3164.0,3163.0,0.1582]
[1768319204930,0.00265812,3164.4,3162.0,0.01058419]
[1768319205233,0.00265812,3164.4,3163.0,0.1582]
[1768319205623,0.00265812,3164.4,3162.0,3.91290322]
[1768319205931,0.00265812,3164.4,3163.4,0.15818]
[1768319206134,0.00265812,3164.4,3162.1,0.0086922]
[1768319206135,0.00265812,3164.4,3162.7,3.1716922]
[1768319206438,0.14486254,3165.6,3163.9,0.15815]
[1768319207336,0.14486254,3165.3,3163.9,0.16098863]
[1768319208234,1.55968501,3165.0,3163.9,0.00283863]
[1768319208440,1.55968501,3165.0,3163.2,0.15819]
[1768319208441,0.14486254,3164.5,3163.2,0.15819]
[1768319208628,0.14486254,3164.5,3162.4,3.90231903]
[1768319208629,0.14486254,3164.5,3162.6,1.55968501]
[1768319208834,0.14486254,3165.0,3163.0,1.55968501]
[1768319209028,0.14486254,3165.0,3163.4,1.55968501]
[1768319209532,0.14486254,3165.0,3163.4,1.56331226]
[1768319209738,0.14486254,3165.4,3163.7,0.15816]
[1768319209938,0.14486254,3165.4,3163.4,0.00362725]
[1768319210640,0.14486254,3165.4,3163.9,0.15815]
[1768319210845,0.14486254,3164.6,3163.4,0.00362725]
[1768319211237,1.55968501,3164.3,3163.4,0.00362725]
[1768319211443,0.14486254,3164.2,3162.7,0.15821]
[1768319212443,0.14486254,3164.2,3162.7,0.16067953]
[1768319212851,0.14486254,3163.8,3162.7,0.16067953]
[1768319213448,0.14486254,3163.8,3162.8,0.15821]
[1768319215347,1.20454755,3163.9,3162.7,0.00246953]
[1768319217156,5.98503184,3165.1,3162.8,0.14336908]
[1768319217450,0.14486254,3165.7,3163.9,0.15815]
[1768319217650,0.14486254,3165.7,3163.4,0.14336908]
[1768319217651,0.14748002,3165.6,3164.1,0.15814]
[1768319217850,0.14748002,3165.6,3164.3,0.15813]
[1768319218051,0.00261748,3165.6,3164.4,0.15813]
[1768319218247,0.00261748,3165.6,3164.5,0.15812]
[1768319220352,0.00261748,3165.6,3164.3,0.14336908]
[1768319220554,0.14486254,3166.6,3164.9,0.1581]
[1768319220849,0.14486254,3166.6,3164.3,0.14336908]
[1768319221055,0.14486254,3166.6,3165.3,0.15808]
[1768319221449,0.14784521,3166.6,3165.3,0.16063283]
[1768319221646,1.70454755,3165.9,3164.7,0.15811]
[1768319221852,0.14486254,3166.4,3164.7,0.15811]
[1768319222050,0.14486254,3166.4,3164.8,0.15811]
[1768319222352,0.14486254,3166.4,3165.0,0.1581]
[1768319222559,0.14486254,3166.1,3165.0,0.1581]
[1768319222857,0.14486254,3166.1,3165.0,0.0033402]
[1768319225051,0.13277329,3165.8,3165.0,0.0033402]
[1768319225245,0.13277329,3165.8,3164.5,0.15812]
[1768319225853,0.13277329,3165.0,3163.8,0.15816]
[1768319226351,0.13277329,3165.0,3163.8,0.16077232]
[1768319226752,1.6924583,3165.5,3163.8,0.16077232]
[1768319227056,0.13277329,3165.5,3163.8,0.00261232]
[1768319227248,0.13277329,3165.5,3164.3,0.15813]
[1768319228251,0.13277329,3165.5,3164.4,0.15813]
[1768319229055,0.13277329,3165.5,3163.8,0.00261232]
[1768319229251,0.13277329,3165.2,3163.8,0.16077232]
[1768319231557,0.13277329,3164.4,3163.1,0.15819]
[1768319231858,4.773,3165.1,3162.5,0.15822]
[1768319231859,1.6924583,3164.1,3162.5,0.15822]
[1768319232059,1.6924583,3164.1,3162.6,0.15822]
[1768319232260,0.13277329,3164.1,3162.6,0.15822]
[1768319232449,1.55968501,3164.5,3162.9,0.1582]
[1768319232647,0.00271882,3164.5,3162.9,0.00362569]
[1768319232851,0.13277329,3164.4,3163.1,0.15819]
[1768319233159,0.13277329,3164.4,3162.9,0.00362569]
[1768319233462,0.13277329,3164.0,3162.9,0.00362569]
[1768319235753,0.13277329,3163.6,3162.4,0.15823]
[1768319236762,0.13277329,3163.6,3162.4,0.16186955]
[1768319241269,1.70484159,3164.1,3162.4,0.16186955]
[1768319241960,0.14515658,3164.0,3162.4,0.16186955]
[1768319242269,0.14515658,3163.6,3162.4,0.16186955]
[1768319243259,0.14515658,3163.6,3162.4,0.00363955]
[1768319243465,1.70484159,3162.9,3161.2,0.15829]
[1768319243666,0.14515658,3162.8,3161.1,3.162]
[1768319243966,1.70484159,3163.3,3161.7,0.15826]
[1768319244472,0.14515658,3163.2,3161.7,0.1609704]
[1768319246467,0.14515658,3163.2,3161.8,0.15826]
[1768319247371,1.55968501,3163.8,3161.7,0.0027104]
[1768319247668,1.55968501,3163.8,3162.1,0.15824]
[1768319247669,0.14515658,3163.6,3162.1,0.15824]
[1768319248372,0.14515658,3163.3,3162.1,0.15824]
[1768319249170,0.14515658,3163.3,3161.7,0.0027104]
[1768319249171,1.55968501,3162.6,3161.7,0.0027104]
[1768319249368,0.14515658,3162.5,3161.7,0.0027104]
[1768319249671,0.14515658,3162.5,3160.1,4.72368501]
[1768319249672,1.55968501,3162.2,3160.8,0.15831]
[1768319249872,0.14515658,3162.5,3160.2,0.15834]
[1768319249873,0.14515658,3161.7,3160.2,0.15834]
[1768319250076,0.14515658,3161.7,3159.9,3.164]
[1768319250273,1.55968501,3162.2,3160.0,0.14493257]
[1768319250469,1.55968501,3162.2,3160.7,0.15831]
[1768319250672,1.56213118,3162.2,3160.7,0.15831]
[1768319250868,0.00244617,3162.2,3160.9,0.1583]
[1768319251967,0.14760275,3162.2,3160.9,0.1583]
[1768319252670,0.14515658,3162.1,3160.9,0.1583]
[1768319253079,1.70484159,3161.8,3160.2,0.15834]
[1768319253679,1.70484159,3161.8,3160.4,0.15833]
[1768319253977,0.14515658,3161.8,3160.5,0.15832]
[1768319254477,1.56213118,3162.2,3160.6,0.15832]
[1768319254678,0.14515658,3162.1,3160.6,0.15832]
[1768319255881,1.69402027,3161.8,3160.6,0.15832]
[1768319256070,0.13433526,3161.7,3160.0,0.16234896]
[1768319256274,0.13433526,3161.7,3160.1,0.15834]
[1768319256473,0.13433526,3161.7,3160.0,0.00399896]
[1768319256474,0.13433526,3161.7,3160.2,0.15834]
[1768319256678,0.13433526,3161.7,3160.3,0.15833]
[1768319257691,0.13433526,3161.3,3160.3,0.15833]
[1768319257977,0.15825,3162.1,3160.3,0.15833]
[1768319257978,0.13433526,3162.1,3160.3,0.15833]
[1768319258173,0.13433526,3162.1,3160.5,0.15832]
[1768319258368,0.13433526,3162.1,3160.0,0.13783518]
[1768319258872,0.00244617,3162.2,3160.9,0.1583]
[1768319259072,0.13678143,3162.2,3160.9,0.1583]
[1768319259772,0.13678143,3162.2,3160.5,0.15832]
[1768319259982,0.13433526,3161.8,3160.0,0.00399896]
[1768319260286,1.69402027,3161.1,3160.0,0.00399896]
[1768319260782,0.13433526,3161.4,3160.0,0.00399896]
[1768319261686,0.13433526,3161.4,3160.0,0.16234896]
[1768319262177,0.13433526,3161.4,3160.1,0.15834]
[1768319264387,0.13433526,3161.1,3160.0,0.00399896]
[1768319265685,0.13433526,3160.8,3160.0,0.00399896]
[1768319265983,0.13433526,3160.8,3159.7,0.15836]
[1768319266579,1.69402027,3160.5,3159.0,0.1584]
[1768319266779,1.69402027,3160.5,3158.3,3.29983622]
[1768319266979,1.69402027,3160.5,3159.2,0.15839]
[1768319267183,0.13433526,3160.4,3159.2,0.15839]
[1768319267684,0.13433526,3160.9,3158.5,0.13383622]
[1768319267985,0.13433526,3160.9,3159.0,0.13383622]
[1768319268186,0.13433526,3160.9,3159.8,0.15836]
[1768319268388,0.13433526,3161.4,3159.8,0.15836]
[1768319268592,0.13433526,3161.4,3159.9,0.15835]
[1768319269885,0.13433526,3161.4,3159.2,0.15839]
[1768319269886,0.13433526,3161.1,3159.2,0.15839]
[1768319270982,0.13433526,3160.9,3159.2,0.15839]
[1768319271190,0.13433526,3160.6,3159.2,0.15839]
[1768319274491,0.13433526,3160.6,3159.3,0.15838]
[1768319274689,0.13433526,3160.6,3159.4,0.15838]
[1768319278395,0.13433526,3160.6,3158.6,0.13383622]
[1768319278699,0.13433526,3160.6,3159.4,0.15838]
[1768319280999,0.13433526,3160.6,3159.5,0.15837]
[1768319281299,0.13433526,3161.1,3159.0,0.13383622]
[1768319282092,0.13433526,3161.1,3159.0,3.30083622]
[1768319282398,0.13433526,3161.1,3159.6,0.15837]
[1768319282995,0.13433526,3160.0,3158.3,0.00273656]
[1768319283197,0.29269526,3159.9,3158.3,0.00273656]
[1768319283398,0.13654989,3159.9,3158.3,0.00273656]
[1768319283796,6.13654989,3159.9,3158.3,0.00273656]
[1768319284103,0.13433526,3159.8,3158.3,0.00273656]
[1768319285592,1.7723534,3159.2,3157.9,1.17342326]
[1768319285793,3.3793534,3159.2,3157.9,1.17342326]
[1768319285999,3.52245917,3159.2,3157.9,1.17342326]
[1768319286199,1.75010577,3159.2,3157.9,1.17342326]
[1768319286395,0.14310577,3159.2,3157.9,1.17342326]
[1768319286705,1.7723534,3159.6,3157.9,1.17643889]
[1768319286901,1.75110577,3159.5,3157.9,1.17643889]
[1768319287200,0.14310577,3159.2,3157.0,0.1585]
[1768319287401,0.14310577,3159.2,3157.1,0.15849]
[1768319288005,0.14310577,3158.7,3157.1,0.15849]
[1768319288203,1.608,3158.6,3157.1,0.16109589]
[1768319288403,0.14310577,3158.7,3157.1,0.16109589]
[1768319288710,1.75110577,3158.7,3157.1,0.16109589]
[1768319289598,1.75110577,3158.7,3155.6,1.82748259]
[1768319289599,0.14310577,3158.6,3156.1,0.13476805]
[1768319289803,1.7723534,3158.7,3156.9,0.13476805]
[1768319289997,1.265,3158.6,3156.9,0.13476805]
[1768319290500,1.40810577,3158.6,3157.0,0.1585]
[1768319290702,1.40810577,3158.6,3157.0,0.16251227]
[1768319291199,0.14310577,3158.5,3157.0,0.00401227]
[1768319292499,0.14310577,3158.5,3156.5,0.15852]
[1768319292500,1.91545917,3158.2,3156.5,0.15852]
[1768319292699,0.14310577,3158.1,3156.5,0.15852]
[1768319293309,0.14310577,3158.1,3155.9,0.13476805]
[1768319293310,0.14310577,3158.1,3155.9,0.29331805]
[1768319293501,0.14310577,3157.6,3155.9,0.16220752]
[1768319293705,0.14310577,3157.4,3155.9,0.16220752]
[1768319294108,0.00344413,3157.6,3156.0,0.15855]
[1768319294302,1.612,3157.5,3156.0,0.15855]
[1768319294710,0.00344413,3157.6,3156.2,0.15854]
[1768319295206,0.1465499,3157.6,3156.2,0.15854]
[1768319296704,1.7575499,3157.6,3156.2,0.15854]
[1768319297004,0.00344413,3157.6,3156.2,0.15854]
[1768319297309,0.00344413,3157.6,3156.2,0.29808253]
[1768319297503,0.00344413,3157.6,3156.3,0.13954253]
[1768319297707,0.00344413,3157.6,3156.5,0.29806253]
[1768319298310,0.00344413,3157.6,3156.6,0.29806253]
[1768319298502,0.00344413,3157.6,3156.9,0.1585]
[1768319298806,0.14680498,3159.1,3157.1,0.15849]
[1768319299010,1.7723534,3158.9,3157.1,0.15849]
[1768319299315,1.7723534,3158.9,3157.4,0.15848]